fUSD/lending_fUSD_20260630
["ID","MTS","AMOUNT","RATE_DAILY","PERIOD"]
[426742791,1782777050000,-150.0,0.00013839,7]
[426742792,1782777050000,-150.0,0.00013839,7]
[426742801,1782777050000,-702.04463387,0.00013951,7]
[426742810,1782777050000,-150.0,0.00014009,7]
[426742800,1782777050000,-13628.51175157,0.00013951,7]
[426742804,1782777050000,-150.0,0.00014009,7]
[426742809,1782777050000,-150.0,0.00014009,7]
[426742805,1782777050000,-150.0,0.00014009,7]
[426742808,1782777050000,-150.0,0.00014009,7]
[426742807,1782777050000,-150.0,0.00014009,7]
[426742802,1782777050000,-28791.48592282,0.0001399,2]
[426742786,1782777050000,-150.0,0.00013839,7]
[426742797,1782777050000,-500.0,0.00013895,2]
[426742785,1782777050000,-150.0,0.00013839,7]
[426742759,1782777050000,-2485.5,0.00013698,2]
[426742781,1782777050000,-150.0,0.00013839,7]
[426742806,1782777050000,-150.0,0.00014009,7]
[426742756,1782777050000,-2485.5,0.00013698,2]
[426742760,1782777050000,-2485.5,0.00013698,2]
[426742763,1782777050000,-2485.5,0.00013698,2]
[426742758,1782777050000,-2485.5,0.00013698,2]
[426742762,1782777050000,-2485.5,0.00013698,2]
[426742761,1782777050000,-2485.5,0.00013698,2]
[426742757,1782777050000,-2485.5,0.00013698,2]
[426742765,1782777050000,-200.0,0.00013699,2]
[426742764,1782777050000,-2485.5,0.00013698,2]
[426742766,1782777050000,-609.33,0.00013699,2]
[426742768,1782777050000,-1000.0,0.00013699,2]
[426742769,1782777050000,-1118.52138394,0.00013699,15]
[426742770,1782777050000,-212.98953323,0.00013731,7]
[426742767,1782777050000,-1000.0,0.00013699,2]
[426742772,1782777050000,-150.0,0.00013839,7]
[426742771,1782777050000,-187.44508517,0.00013731,10]
[426742776,1782777050000,-150.0,0.00013839,7]
[426742774,1782777050000,-150.0,0.00013839,7]
[426742775,1782777050000,-150.0,0.00013839,7]
[426742773,1782777050000,-150.0,0.00013839,7]
[426742778,1782777050000,-150.0,0.00013839,7]
[426742777,1782777050000,-150.0,0.00013839,7]
[426742780,1782777050000,-150.0,0.00013839,7]
[426742779,1782777050000,-150.0,0.00013839,7]
[426742783,1782777050000,-150.0,0.00013839,7]
[426742812,1782777050000,-500.0,0.00014124,2]
[426742869,1782777050000,-505.0,0.00015,2]
[426742813,1782777050000,-166.43,0.00014196,2]
[426742843,1782777050000,-500.0,0.00014452,2]
[426742841,1782777050000,-500.0,0.00014452,2]
[426742847,1782777050000,-500.0,0.00014452,2]
[426742857,1782777050000,-198.31775247,0.00014452,2]
[426742849,1782777050000,-500.0,0.00014452,2]
[426742846,1782777050000,-500.0,0.00014452,2]
[426742848,1782777050000,-500.0,0.00014452,2]
[426742855,1782777050000,-500.0,0.00014452,2]
[426742851,1782777050000,-500.0,0.00014452,2]
[426742856,1782777050000,-500.0,0.00014452,2]
[426742853,1782777050000,-500.0,0.00014452,2]
[426742850,1782777050000,-500.0,0.00014452,2]
[426742854,1782777050000,-619.04227537,0.00014452,2]
[426742852,1782777050000,-500.0,0.00014452,2]
[426742858,1782777050000,-500.0,0.00014452,2]
[426742859,1782777050000,-314.26787065,0.00014452,2]
[426742860,1782777050000,-162.3416441,0.00014452,2]
[426742862,1782777050000,-500.0,0.00014644,2]
[426742861,1782777050000,-501.96465776,0.00014644,2]
[426742865,1782777050000,-166.43,0.00014842,2]
[426742868,1782777050000,-917.0,0.00014999,2]
[426742866,1782777050000,-164.56,0.00014873,2]
[426742863,1782777050000,-41605.67620604,0.00014647,2]
[426742867,1782777050000,-500.0,0.00014945,2]
[426742811,1782777050000,-244.89195862,0.00014009,7]
[426742836,1782777050000,-150.0,0.00014452,2]
[426742838,1782777050000,-154.99427942,0.00014452,2]
[426742864,1782777050000,-500.0,0.00014672,2]
[426742842,1782777050000,-500.0,0.00014452,2]
[426742837,1782777050000,-241.80115163,0.00014452,2]
[426742816,1782777050000,-418.995837,0.000142,2]
[426742818,1782777050000,-166.75,0.00014309,2]
[426742815,1782777050000,-341.653899,0.000142,2]
[426742817,1782777050000,-164.56,0.00014284,2]
[426742819,1782777050000,-245.91282718,0.00014352,2]
[426742814,1782777050000,-290.076788,0.000142,2]
[426742821,1782777050000,-374.89017036,0.00014353,10]
[426742823,1782777050000,-500.0,0.00014398,2]
[426742822,1782777050000,-192.95,0.00014386,2]
[426742831,1782777050000,-343.1176374,0.00014452,2]
[426742832,1782777050000,-150.0,0.00014452,2]
[426742824,1782777050000,-500.0,0.00014452,2]
[426742820,1782777050000,-151.0,0.00014352,2]
[426742825,1782777050000,-500.0,0.00014452,2]
[426742826,1782777050000,-500.0,0.00014452,2]
[426742839,1782777050000,-500.0,0.00014452,2]
[426742840,1782777050000,-500.0,0.00014452,2]
[426742845,1782777050000,-500.0,0.00014452,2]
[426742834,1782777050000,-150.0,0.00014452,2]
[426742844,1782777050000,-500.0,0.00014452,2]
[426742833,1782777050000,-154.92925631,0.00014452,2]
[426742828,1782777050000,-500.0,0.00014452,2]
[426742829,1782777050000,-500.0,0.00014452,2]
[426742827,1782777050000,-500.0,0.00014452,2]
[426742830,1782777050000,-621.15565481,0.00014452,2]
[426742835,1782777050000,-150.0,0.00014452,2]
[426742907,1782777051000,-168.49983,0.0001742,2]
[426742908,1782777051000,-166.43,0.00017423,2]
[426742917,1782777051000,-2604.74,0.00017728,2]
[426742903,1782777051000,-152.0,0.00016933,2]
[426742896,1782777051000,-151.0,0.00016933,2]
[426742897,1782777051000,-151.0,0.00016933,2]
[426742902,1782777051000,-152.0,0.00016933,2]
[426742900,1782777051000,-152.0,0.00016933,2]
[426742904,1782777051000,-151.0,0.00016933,2]
[426742901,1782777051000,-152.0,0.00016933,2]
[426742906,1782777051000,-216.58458871,0.00017,7]
[426742914,1782777051000,-372.64,0.00017728,2]
[426742910,1782777051000,-540.97097264,0.00017628,2]
[426742911,1782777051000,-181.29,0.00017645,2]
[426742912,1782777051000,-306.32,0.00017645,2]
[426742915,1782777051000,-299.99,0.00017728,4]
[426742913,1782777051000,-1743.6,0.00017645,2]
[426742916,1782777051000,-999.99,0.00017728,2]
[426742918,1782777051000,-5192.45,0.00017728,2]
[426742927,1782777051000,-584.3445072,0.00017813,2]
[426742919,1782777051000,-9999.99,0.00017728,2]
[426742928,1782777051000,-2969.74110312,0.00017813,2]
[426742921,1782777051000,-1344.87,0.00017728,2]
[426742898,1782777051000,-151.0,0.00016933,2]
[426742909,1782777051000,-505.0,0.000175,4]
[426742899,1782777051000,-151.0,0.00016933,2]
[426742884,1782777051000,-2485.5,0.00016296,2]
[426742895,1782777051000,-151.0,0.00016933,2]
[426742920,1782777051000,-6273.52,0.00017728,2]
[426742870,1782777051000,-500.0,0.00015219,2]
[426742872,1782777051000,-207.07496643,0.000153,2]
[426742875,1782777051000,-500.0,0.00015493,2]
[426742876,1782777051000,-500.0,0.00015767,2]
[426742871,1782777051000,-250.0,0.0001529,2]
[426742878,1782777051000,-505.0,0.00015833,2]
[426742877,1782777051000,-165.94425905,0.0001582,2]
[426742874,1782777051000,-166.43,0.00015487,2]
[426742873,1782777051000,-164.56,0.00015463,2]
[426742879,1782777051000,-158.65,0.00015902,2]
[426742881,1782777051000,-164.56,0.00016052,2]
[426742880,1782777051000,-500.0,0.00016041,2]
[426742882,1782777051000,-166.43,0.00016132,2]
[426742894,1782777051000,-151.0,0.00016933,2]
[426742883,1782777051000,-772.72016843,0.00016183,2]
[426742886,1782777051000,-500.0,0.00016438,2]
[426742885,1782777051000,-500.0,0.00016315,2]
[426742887,1782777051000,-500.0,0.00016438,2]
[426742889,1782777051000,-227.12409933,0.00016466,2]
[426742891,1782777051000,-505.0,0.00016667,3]
[426742890,1782777051000,-164.56,0.00016641,2]
[426742888,1782777051000,-214.36457203,0.00016438,2]
[426742892,1782777051000,-166.43,0.00016777,2]
[426742893,1782777051000,-41605.67620604,0.00016794,2]
[426742905,1782777051000,-151.0,0.00016933,2]
[426742922,1782777051000,-150.99,0.00017728,2]
[426742980,1782777051000,-506.84520691,0.000192,2]
[426742924,1782777051000,-9999.99,0.00017728,2]
[426742949,1782777051000,-630.48,0.00018626,2]
[426742956,1782777051000,-500.0,0.00018626,2]
[426742954,1782777051000,-500.0,0.00018626,2]
[426742955,1782777051000,-500.0,0.00018626,2]
[426742960,1782777051000,-506.84520691,0.000187,2]
[426742963,1782777051000,-335.96757487,0.000187,2]
[426742964,1782777051000,-506.84520691,0.000189,2]
[426742966,1782777051000,-4021.18252922,0.000189,2]
[426742962,1782777051000,-4021.18252922,0.000187,2]
[426742961,1782777051000,-192.08612594,0.000187,2]
[426742967,1782777051000,-335.96757487,0.000189,2]
[426742957,1782777051000,-500.0,0.00018626,2]
[426742971,1782777051000,-506.84520691,0.000191,2]
[426742970,1782777051000,-256.88,0.00019,8]
[426742969,1782777051000,-41605.67620604,0.00018942,2]
[426742973,1782777051000,-335.96757487,0.000191,2]
[426742972,1782777051000,-4021.18252922,0.000191,2]
[426742976,1782777051000,-505.0,0.00019167,5]
[426742977,1782777051000,-500.0,0.00019178,2]
[426742974,1782777051000,-155.8863578,0.00019114,5]
[426742975,1782777051000,-154.8863578,0.00019114,5]
[426742979,1782777051000,-173.81676022,0.00019178,2]
[426742978,1782777051000,-500.0,0.00019178,2]
[426742925,1782777051000,-9999.99,0.00017728,2]
[426742968,1782777051000,-2700.0,0.000189,6]
[426742951,1782777051000,-546.01,0.00018626,2]
[426742965,1782777051000,-192.08612594,0.000189,2]
[426742952,1782777051000,-500.0,0.00018626,2]
[426742953,1782777051000,-581.73724219,0.00018626,2]
[426742926,1782777051000,-151.95595905,0.00017743,2]
[426742930,1782777051000,-156.45618947,0.00017913,2]
[426742929,1782777051000,-771779.9023117,0.00017882,2]
[426742933,1782777051000,-158.65,0.00018174,2]
[426742934,1782777051000,-162.64,0.000183,2]
[426742931,1782777051000,-658.14,0.00018016,2]
[426742932,1782777051000,-668.97,0.00018016,2]
[426742935,1782777051000,-505.0,0.00018333,4]
[426742937,1782777051000,-151.0,0.00018624,2]
[426742936,1782777051000,-500.0,0.00018548,2]
[426742938,1782777051000,-500.0,0.00018626,2]
[426742940,1782777051000,-500.0,0.00018626,2]
[426742923,1782777051000,-8750.73,0.00017728,2]
[426742948,1782777051000,-630.48,0.00018626,2]
[426742946,1782777051000,-500.0,0.00018626,2]
[426742942,1782777051000,-557.35,0.00018626,2]
[426742941,1782777051000,-500.0,0.00018626,2]
[426742947,1782777051000,-500.0,0.00018626,2]
[426742943,1782777051000,-557.35,0.00018626,2]
[426742944,1782777051000,-820.01,0.00018626,2]
[426742945,1782777051000,-820.01,0.00018626,2]
[426742939,1782777051000,-500.0,0.00018626,2]
[426742950,1782777051000,-546.01,0.00018626,2]
[426742958,1782777051000,-2485.5,0.00018626,2]
[426742959,1782777051000,-2485.5,0.00018626,2]
[426743022,1782777052000,-227.12409933,0.00020433,2]
[426743014,1782777052000,-869.0,0.0002,2]
[426743021,1782777052000,-4021.18252922,0.000204,2]
[426743027,1782777052000,-151.0,0.00020604,2]
[426743018,1782777052000,-151.0,0.0002018,2]
[426743016,1782777052000,-232.0,0.0002,2]
[426743008,1782777052000,-201.0,0.0002,2]
[426743007,1782777052000,-560.0,0.0002,2]
[426743013,1782777052000,-171.0,0.0002,2]
[426743005,1782777052000,-4021.18252922,0.0002,2]
[426743020,1782777052000,-4021.18252922,0.000202,2]
[426743011,1782777052000,-152.0,0.0002,2]
[426743019,1782777052000,-151.0,0.0002018,2]
[426743028,1782777052000,-151.0,0.00020604,2]
[426743024,1782777052000,-150.0,0.00020547,2]
[426743017,1782777052000,-320.0,0.00020136,2]
[426743025,1782777052000,-151.0,0.00020604,2]
[426743026,1782777052000,-151.0,0.00020604,2]
[426743034,1782777052000,-151.0,0.00020604,2]
[426743037,1782777052000,-151.0,0.00020604,2]
[426743033,1782777052000,-151.0,0.00020604,2]
[426743030,1782777052000,-151.0,0.00020604,2]
[426743036,1782777052000,-151.0,0.00020604,2]
[426743038,1782777052000,-151.0,0.00020604,2]
[426743032,1782777052000,-151.0,0.00020604,2]
[426743023,1782777052000,-158.65,0.00020445,2]
[426743015,1782777052000,-204.0,0.0002,2]
[426742982,1782777052000,-335.96757487,0.000192,2]
[426743012,1782777052000,-505.0,0.0002,6]
[426743039,1782777052000,-151.0,0.00020604,2]
[426742981,1782777052000,-4021.18252922,0.000192,2]
[426742985,1782777052000,-4021.18252922,0.000194,2]
[426742987,1782777052000,-320.0,0.00019452,2]
[426742988,1782777052000,-500.0,0.00019572,2]
[426742989,1782777052000,-500.0,0.00019572,2]
[426742993,1782777052000,-820.01,0.00019877,2]
[426742986,1782777052000,-335.96757487,0.000194,2]
[426742984,1782777052000,-506.84520691,0.000194,2]
[426742990,1782777052000,-4021.18252922,0.000196,2]
[426742992,1782777052000,-557.35,0.00019877,2]
[426742991,1782777052000,-4021.18252922,0.000198,2]
[426742994,1782777052000,-500.0,0.00019877,2]
[426742995,1782777052000,-630.48,0.00019877,2]
[426742996,1782777052000,-546.01,0.00019877,2]
[426742997,1782777052000,-162.64,0.000199,2]
[426742998,1782777052000,-1069.0,0.00019938,5]
[426742999,1782777052000,-1825.0,0.00019938,5]
[426743004,1782777052000,-275.0,0.0002,2]
[426743003,1782777052000,-91863.8886585,0.00019964,2]
[426743000,1782777052000,-500.0,0.00019963,2]
[426743001,1782777052000,-500.0,0.00019963,2]
[426743002,1782777052000,-2485.5,0.00019963,2]
[426743006,1782777052000,-312.0,0.0002,2]
[426743010,1782777052000,-664.0,0.0002,2]
[426743009,1782777052000,-252.0,0.0002,2]
[426743035,1782777052000,-151.0,0.00020604,2]
[426742983,1782777052000,-439.62987426,0.00019239,2]
[426743029,1782777052000,-151.0,0.00020604,2]
[426743072,1782777052000,-505.0,0.00021667,7]
[426743071,1782777052000,-190.18706304,0.000216,2]
[426743074,1782777052000,-324.30939278,0.00021811,2]
[426743073,1782777052000,-155.8863578,0.00021675,5]
[426743070,1782777052000,-320.0,0.00021506,2]
[426743075,1782777052000,-190.18706304,0.000219,2]
[426743082,1782777052000,-560.0,0.00022,2]
[426743078,1782777052000,-150.0,0.00021918,2]
[426743077,1782777052000,-5000.0,0.00021918,2]
[426743076,1782777052000,-562.0,0.000219,7]
[426743086,1782777052000,-152.0,0.00022,2]
[426743079,1782777052000,-865.41676728,0.00021948,2]
[426743080,1782777052000,-275.0,0.00022,2]
[426743083,1782777052000,-201.0,0.00022,2]
[426743085,1782777052000,-664.0,0.00022,2]
[426743081,1782777052000,-312.0,0.00022,2]
[426743084,1782777052000,-252.0,0.00022,2]
[426743088,1782777052000,-869.0,0.00022,2]
[426743087,1782777052000,-171.0,0.00022,2]
[426743090,1782777052000,-521.16,0.00022,2]
[426743093,1782777052000,-320.0,0.00022191,2]
[426743094,1782777052000,-292.58,0.00022466,2]
[426743089,1782777052000,-204.0,0.00022,2]
[426743091,1782777052000,-232.0,0.00022,2]
[426743095,1782777052000,-505.0,0.000225,8]
[426743069,1782777052000,-298.69966629,0.000215,2]
[426743068,1782777052000,-162.64,0.000214,2]
[426743092,1782777052000,-500.0,0.00022082,2]
[426743067,1782777052000,-190.18706304,0.000214,2]
[426743066,1782777052000,-190.18706304,0.000212,2]
[426743041,1782777052000,-151.0,0.00020604,2]
[426743051,1782777052000,-505.0,0.00020833,7]
[426743040,1782777052000,-151.0,0.00020604,2]
[426743043,1782777052000,-151.0,0.00020604,2]
[426743045,1782777052000,-500.0,0.00020659,2]
[426743042,1782777052000,-151.0,0.00020604,2]
[426743044,1782777052000,-151.0,0.00020604,2]
[426743048,1782777052000,-150.0,0.00020659,2]
[426743047,1782777052000,-357.54746063,0.00020659,2]
[426743050,1782777052000,-320.0,0.00020821,2]
[426743049,1782777052000,-1154.0,0.00020768,5]
[426743046,1782777052000,-500.0,0.00020659,2]
[426743031,1782777052000,-151.0,0.00020604,2]
[426743063,1782777052000,-232.0,0.00021,2]
[426743053,1782777052000,-190.18706304,0.00021,2]
[426743064,1782777052000,-500.0,0.00021176,2]
[426743059,1782777052000,-152.0,0.00021,2]
[426743060,1782777052000,-171.0,0.00021,2]
[426743061,1782777052000,-869.0,0.00021,2]
[426743057,1782777052000,-252.0,0.00021,2]
[426743065,1782777052000,-1045.5093,0.00021183,7]
[426743062,1782777052000,-204.0,0.00021,2]
[426743055,1782777052000,-560.0,0.00021,2]
[426743054,1782777052000,-312.0,0.00021,2]
[426743052,1782777052000,-275.0,0.00021,2]
[426743056,1782777052000,-201.0,0.00021,2]
[426743058,1782777052000,-664.0,0.00021,2]
[426743129,1782777053000,-500.0,0.00023014,2]
[426743121,1782777053000,-500.0,0.00023014,2]
[426743127,1782777053000,-500.0,0.00023014,2]
[426743128,1782777053000,-251.43799297,0.00023014,2]
[426743138,1782777053000,-185.01771763,0.00023594,2]
[426743136,1782777053000,-198.81313366,0.00023587,2]
[426743139,1782777053000,-161.79286925,0.00023594,2]
[426743137,1782777053000,-180.39720908,0.00023594,2]
[426743133,1782777053000,-771779.9023117,0.00023289,2]
[426743118,1782777053000,-500.0,0.00023014,2]
[426743141,1782777053000,-197.22258442,0.00023594,2]
[426743132,1782777053000,-537.6845,0.00023178,2]
[426743130,1782777053000,-616.0,0.00023014,2]
[426743135,1782777053000,-158.27356337,0.00023587,2]
[426743134,1782777053000,-505.0,0.00023333,9]
[426743119,1782777053000,-500.0,0.00023014,2]
[426743152,1782777053000,-158.90133289,0.0002361,2]
[426743151,1782777053000,-156.69209207,0.0002361,2]
[426743142,1782777053000,-177.85626479,0.00023594,2]
[426743140,1782777053000,-202.26807697,0.00023594,2]
[426743143,1782777053000,-150.61759924,0.00023594,2]
[426743144,1782777053000,-179.95329856,0.00023594,2]
[426743145,1782777053000,-170.35589188,0.00023594,2]
[426743131,1782777053000,-200.0,0.00023102,2]
[426743123,1782777053000,-500.0,0.00023014,2]
[426743122,1782777053000,-500.0,0.00023014,2]
[426743124,1782777053000,-500.0,0.00023014,2]
[426743150,1782777053000,-203.08260919,0.0002361,2]
[426743098,1782777053000,-152.0,0.00022676,2]
[426743097,1782777053000,-152.0,0.00022676,2]
[426743099,1782777053000,-398.19907659,0.00022851,2]
[426743096,1782777053000,-518.5,0.0002263,2]
[426743100,1782777053000,-150.0,0.00022851,2]
[426743102,1782777053000,-312.0,0.00023,2]
[426743103,1782777053000,-560.0,0.00023,2]
[426743107,1782777053000,-152.0,0.00023,2]
[426743105,1782777053000,-252.0,0.00023,2]
[426743111,1782777053000,-155.8863578,0.00023008,5]
[426743126,1782777053000,-500.0,0.00023014,2]
[426743104,1782777053000,-201.0,0.00023,2]
[426743109,1782777053000,-869.0,0.00023,2]
[426743112,1782777053000,-155.8863578,0.00023008,5]
[426743101,1782777053000,-275.0,0.00023,2]
[426743106,1782777053000,-664.0,0.00023,2]
[426743114,1782777053000,-150.0,0.00023014,2]
[426743115,1782777053000,-150.0,0.00023014,2]
[426743125,1782777053000,-500.0,0.00023014,2]
[426743120,1782777053000,-509.56126523,0.00023014,2]
[426743116,1782777053000,-238.08670734,0.00023014,2]
[426743117,1782777053000,-500.0,0.00023014,2]
[426743113,1782777053000,-150.0,0.00023014,2]
[426743108,1782777053000,-171.0,0.00023,2]
[426743110,1782777053000,-204.0,0.00023,2]
[426743148,1782777053000,-176.74478931,0.0002361,2]
[426743149,1782777053000,-216.77510015,0.0002361,2]
[426743181,1782777053000,-256.01,0.0002411,2]
[426743180,1782777053000,-2485.5,0.00024069,2]
[426743182,1782777053000,-150.0,0.00024164,2]
[426743184,1782777053000,-275.47,0.00024174,2]
[426743187,1782777053000,-4757.95,0.00024174,2]
[426743189,1782777053000,-227.12409933,0.000244,2]
[426743186,1782777053000,-23088.22,0.00024174,2]
[426743185,1782777053000,-1372.08,0.00024174,2]
[426743183,1782777053000,-505.0,0.00024167,10]
[426743188,1782777053000,-200.0,0.00024237,2]
[426743190,1782777053000,-3565.0,0.00024452,2]
[426743176,1782777053000,-152.0,0.00024,2]
[426743191,1782777053000,-293.0,0.00024452,2]
[426743193,1782777053000,-1362.0,0.00024452,2]
[426743192,1782777053000,-1280.426,0.00024452,2]
[426743195,1782777053000,-218.791,0.00024452,2]
[426743197,1782777053000,-1000.0,0.00024658,2]
[426743198,1782777053000,-181.88,0.00024658,2]
[426743199,1782777053000,-5265.54863112,0.00024806,2]
[426743201,1782777053000,-397.62626731,0.00024843,2]
[426743200,1782777053000,-316.54712673,0.00024843,2]
[426743203,1782777053000,-153.23427527,0.0002485,2]
[426743202,1782777053000,-360.79441816,0.0002485,2]
[426743146,1782777053000,-174.40784466,0.00023594,2]
[426743194,1782777053000,-6087.0,0.00024452,2]
[426743173,1782777053000,-201.0,0.00024,2]
[426743196,1782777053000,-521.16,0.0002454,7]
[426743175,1782777053000,-664.0,0.00024,2]
[426743174,1782777053000,-252.0,0.00024,2]
[426743153,1782777053000,-180.32901812,0.0002361,2]
[426743158,1782777053000,-191.90104982,0.00023627,2]
[426743165,1782777053000,-176.04478772,0.0002367,2]
[426743157,1782777053000,-170.97673441,0.00023627,2]
[426743159,1782777053000,-161.73271233,0.00023627,2]
[426743161,1782777053000,-161.99419658,0.00023627,2]
[426743154,1782777053000,-155.80312789,0.0002361,2]
[426743156,1782777053000,-176.45424766,0.00023627,2]
[426743162,1782777053000,-500.0,0.00023669,2]
[426743166,1782777053000,-200.810011,0.0002367,2]
[426743160,1782777053000,-185.14235001,0.00023627,2]
[426743147,1782777053000,-218.45150209,0.0002361,2]
[426743177,1782777053000,-171.0,0.00024,2]
[426743163,1782777053000,-192.96447714,0.0002367,2]
[426743172,1782777053000,-560.0,0.00024,2]
[426743171,1782777053000,-312.0,0.00024,2]
[426743179,1782777053000,-204.0,0.00024,2]
[426743169,1782777053000,-334.7249507,0.00023726,2]
[426743170,1782777053000,-275.0,0.00024,2]
[426743178,1782777053000,-869.0,0.00024,2]
[426743168,1782777053000,-158.34896124,0.00023719,2]
[426743155,1782777053000,-187.81331854,0.00023627,2]
[426743164,1782777053000,-194.8622345,0.0002367,2]
[426743167,1782777053000,-162.64,0.000237,7]
[426743239,1782777054000,-310.0,0.000249,2]
[426743238,1782777054000,-890.0,0.000249,2]
[426743241,1782777054000,-389.72446901,0.00024928,2]
[426743240,1782777054000,-385.92895428,0.00024928,2]
[426743237,1782777054000,-317.0,0.000249,2]
[426743242,1782777054000,-352.08957543,0.00024928,2]
[426743235,1782777054000,-155.8863578,0.00024887,5]
[426743233,1782777054000,-323.98839317,0.00024884,2]
[426743234,1782777054000,-155.8863578,0.00024887,5]
[426743243,1782777054000,-401.620022,0.00024928,2]
[426743232,1782777054000,-370.28470002,0.00024884,2]
[426743236,1782777054000,-1000.0,0.000249,2]
[426743245,1782777054000,-154.46935751,0.00024967,2]
[426743248,1782777054000,-157.922672,0.00025,7]
[426743249,1782777054000,-326.0,0.00025,2]
[426743246,1782777054000,-316.69792248,0.00024979,2]
[426743252,1782777054000,-573.0,0.00025,2]
[426743244,1782777054000,-563.48,0.00024961,2]
[426743251,1782777054000,-323.0,0.00025,2]
[426743253,1782777054000,-201.0,0.00025,2]
[426743247,1782777054000,-500.0,0.00024986,2]
[426743255,1782777054000,-673.83020111,0.00025,2]
[426743254,1782777054000,-252.0,0.00025,2]
[426743257,1782777054000,-505.0,0.00025,10]
[426743256,1782777054000,-155.0,0.00025,2]
[426743250,1782777054000,-286.0,0.00025,2]
[426743231,1782777054000,-167.54671676,0.00024884,2]
[426743206,1782777054000,-404.53615395,0.0002485,2]
[426743227,1782777054000,-352.90849531,0.00024884,2]
[426743204,1782777054000,-370.03543526,0.0002485,2]
[426743205,1782777054000,-323.5857385,0.0002485,2]
[426743207,1782777054000,-394.44516884,0.0002485,2]
[426743209,1782777054000,-301.23519848,0.0002485,2]
[426743263,1782777054000,-500.0,0.00025233,2]
[426743211,1782777054000,-215.1063841,0.0002485,2]
[426743208,1782777054000,-355.71252957,0.0002485,2]
[426743210,1782777054000,-178.12885866,0.0002485,2]
[426743215,1782777054000,-152.53067988,0.0002485,2]
[426743212,1782777054000,-359.90659711,0.0002485,2]
[426743213,1782777054000,-340.71178375,0.0002485,2]
[426743216,1782777054000,-436.90300419,0.00024866,2]
[426743214,1782777054000,-348.81568932,0.0002485,2]
[426743218,1782777054000,-353.48957861,0.00024866,2]
[426743217,1782777054000,-176.7845279,0.00024866,2]
[426743219,1782777054000,-433.55020031,0.00024866,2]
[426743220,1782777054000,-406.16521837,0.00024866,2]
[426743221,1782777054000,-313.38418414,0.00024866,2]
[426743222,1782777054000,-317.80266579,0.00024866,2]
[426743225,1782777054000,-235.86108831,0.00024884,2]
[426743223,1782777054000,-360.65803624,0.00024866,2]
[426743224,1782777054000,-311.60625578,0.00024866,2]
[426743228,1782777054000,-341.95346883,0.00024884,2]
[426743230,1782777054000,-323.46542466,0.00024884,2]
[426743229,1782777054000,-383.80209964,0.00024884,2]
[426743226,1782777054000,-375.62663708,0.00024884,2]
[426743258,1782777054000,-173.0,0.00025,2]
[426743311,1782777054000,-530.23436792,0.00025703,2]
[426743261,1782777054000,-4648.9983115,0.00025076,2]
[426743291,1782777054000,-278.29241529,0.00025687,2]
[426743292,1782777054000,-190.18372415,0.00025687,2]
[426743295,1782777054000,-219.43357672,0.00025687,2]
[426743298,1782777054000,-210.42658487,0.00025687,2]
[426743296,1782777054000,-217.3520439,0.00025687,2]
[426743293,1782777054000,-533.56879436,0.00025687,2]
[426743299,1782777054000,-451.85279772,0.00025687,2]